bitfinex/quotes_SOLUSD_20250616
["timestamp","ask_amount","ask_price","bid_price","bid_amount"]
[1750116314451,28.84,152.98,152.96,13.59757885]
[1750116315145,35.41082424,152.98,152.96,13.59757885]
[1750116315749,28.84,152.98,152.96,13.59757885]
[1750116315953,28.84,152.98,152.96,20.16840309]
[1750116316182,28.84,152.98,152.96,13.59757885]
[1750116317681,28.84,152.98,152.97,6.57082424]
[1750116317995,28.84,152.98,152.96,20.16840309]
[1750116318950,6.57082424,153.01,152.96,36.51254534]
[1750116319149,28.82,153.0,152.96,36.51254534]
[1750116319351,35.39082424,153.0,152.96,29.9417211]
[1750116320546,28.82,153.0,152.96,36.51254534]
[1750116321671,35.39082424,153.0,152.96,29.9417211]
[1750116322062,28.8,152.99,152.96,29.9417211]
[1750116324392,35.37082424,152.99,152.96,29.9417211]
[1750116324983,28.8,152.99,152.96,29.9417211]
[1750116326254,6.57082424,152.98,152.96,29.9417211]
[1750116326454,35.37082424,152.99,152.96,29.9417211]
[1750116326651,28.8,152.99,152.96,29.9417211]
[1750116326851,35.37082424,152.99,152.96,29.9417211]
[1750116327361,18.64964886,152.96,152.9,6.54022236]
[1750116327566,0.28432314,152.95,152.9,6.54022236]
[1750116327768,6.57082424,152.91,152.9,6.54022236]
[1750116327968,35.35082424,152.91,152.89,4.40216149]
[1750116328173,6.57082424,152.9,152.89,4.40216149]
[1750116328364,6.85514738,152.9,152.89,4.40216149]
[1750116329993,25.50479624,152.9,152.89,4.40216149]
[1750116330166,38.38808205,152.9,152.89,4.40216149]
[1750116330374,6.57082424,152.86,152.83,6.54321795]
[1750116330586,35.35082424,152.85,152.83,6.54321795]
[1750116331302,28.78,152.85,152.83,6.54321795]
[1750116331486,28.78,152.85,152.83,13.11404219]
[1750116331791,28.78,152.85,152.83,6.54321795]
[1750116333396,6.57082424,152.84,152.83,6.54321795]
[1750116333597,6.57082424,152.84,152.82,6.54358902]
[1750116333891,35.35082424,152.85,152.82,6.54358902]
[1750116334193,6.57082424,152.84,152.82,6.54358902]
[1750116334392,6.57082424,152.83,152.8,16.36056869]
[1750116334697,6.57082424,152.81,152.8,16.36056869]
[1750116334897,28.78,152.81,152.8,16.36056869]
[1750116335683,35.35082424,152.81,152.8,16.36056869]
[1750116335876,35.35082424,152.81,152.79,6.54493095]
[1750116336090,6.57082424,152.8,152.79,6.54493095]
[1750116336285,35.35082424,152.81,152.79,6.54493095]
[1750116336800,28.78,152.81,152.79,6.54493095]
[1750116337613,35.35082424,152.81,152.79,6.54493095]
[1750116338317,6.57082424,152.8,152.79,6.54493095]
[1750116338502,28.78,152.81,152.79,6.54493095]
[1750116338677,35.35082424,152.81,152.79,6.54493095]
[1750116339005,6.57082424,152.81,152.78,6.54535934]
[1750116339311,35.33082424,152.8,152.78,6.54535934]
[1750116339612,1.5581,152.89,152.79,6.57082424]
[1750116339918,6.57082424,152.87,152.78,22.90875769]
[1750116340098,6.57082424,152.85,152.78,22.90875769]
[1750116340403,35.33082424,152.84,152.78,22.90875769]
[1750116340582,28.76,152.83,152.8,6.57082424]
[1750116340771,28.78,152.83,152.8,6.57082424]
[1750116340978,28.78,152.83,152.81,6.54407434]
[1750116342506,28.78,152.83,152.82,6.57082424]
[1750116342810,50.96211043,152.9,152.82,6.57082424]
[1750116342811,6.1703,152.9,152.82,6.57082424]
[1750116342993,28.76,152.89,152.86,6.57082424]
[1750116343184,28.76,152.89,152.87,6.98]
[1750116344903,28.76,152.89,152.88,6.54107796]
[1750116345088,28.76,152.9,152.88,13.1119022]
[1750116345406,28.76,152.9,152.88,22.89377288]
[1750116345610,28.76,152.91,152.88,22.89377288]
[1750116345905,28.76,152.91,152.88,29.46459712]
[1750116346977,35.33082424,152.91,152.88,6.54107796]
[1750116347183,6.57082424,152.9,152.88,6.54107796]
[1750116347412,6.57082424,152.89,152.88,6.54107796]
[1750116349013,6.57082424,152.9,152.88,6.54107796]
[1750116349220,6.57082424,152.89,152.88,6.54107796]
[1750116349705,6.57082424,152.89,152.87,13.52142737]
[1750116349879,6.57082424,152.88,152.87,13.52142737]
[1750116350081,6.57082424,152.89,152.87,13.52142737]
[1750116350285,28.76,152.88,152.87,13.52142737]
[1750116350487,35.33082424,152.88,152.87,6.98]
[1750116351205,28.76,152.88,152.87,13.52150585]
[1750116351401,35.33082424,152.88,152.87,13.52150585]
[1750116353296,28.76,152.88,152.87,13.52150585]
[1750116353496,35.33082424,152.88,152.87,13.52150585]
[1750116353692,28.76,152.88,152.87,13.52150585]
[1750116353900,35.33082424,152.88,152.87,13.52150585]
[1750116354417,28.76,152.88,152.87,13.52150585]
[1750116354612,35.33082424,152.88,152.87,13.52150585]
[1750116357617,28.76,152.88,152.87,13.52150585]
[1750116357822,35.33082424,152.88,152.87,13.52150585]
[1750116358919,28.76,152.88,152.87,13.52150585]
[1750116359125,35.33082424,152.88,152.87,13.52150585]
[1750116359508,35.33082424,152.88,152.87,6.98]
[1750116359729,35.33082424,152.88,152.87,13.52150585]
[1750116360024,35.33082424,152.88,152.87,6.98]
[1750116360531,60.83562048,152.88,152.87,6.98]
[1750116360904,54.26479624,152.88,152.87,6.98]
[1750116361305,65.56085198,152.88,152.87,6.98]
[1750116361625,60.83562048,152.88,152.87,6.98]
[1750116361817,60.83562048,152.88,152.82,13.50364611]
[1750116361996,54.26479624,152.88,152.82,13.50364611]
[1750116362196,6.57082424,152.85,152.82,13.50364611]
[1750116362425,35.31082424,152.84,152.82,13.50364611]
[1750116363004,6.57082424,152.83,152.82,6.96]
[1750116363206,28.74,152.84,152.82,6.96]
[1750116363207,28.74,152.84,152.82,13.50364611]
[1750116363413,6.57082424,152.83,152.78,6.54535934]
[1750116363621,28.74,152.82,152.78,22.90875769]
[1750116363831,35.31082424,152.82,152.78,22.90875769]
[1750116364502,35.31082424,152.82,152.78,29.47958193]
[1750116364704,28.74,152.82,152.78,22.90875769]
[1750116365137,35.31082424,152.82,152.78,29.47958193]
[1750116365313,28.74,152.82,152.78,22.90875769]
[1750116365522,28.74,152.82,152.8,6.57082424]
[1750116365920,28.74,152.82,152.78,22.90875769]
[1750116366136,28.74,152.82,152.8,6.57082424]
[1750116366327,28.74,152.82,152.78,22.90875769]
[1750116366543,28.74,152.82,152.8,6.57082424]
[1750116367616,28.74,152.82,152.79,6.57082424]
[1750116368238,6.57082424,152.84,152.79,6.57082424]
[1750116368420,28.74,152.83,152.8,6.57082424]
[1750116368624,28.74,152.83,152.81,13.11489858]
[1750116369525,6.57082424,152.91,152.86,6.57082424]
[1750116369706,28.74,152.9,152.86,6.57082424]
[1750116370130,8.13082424,152.94,152.89,6.57082424]
[1750116370338,6.57082424,152.93,152.83,6.96]
[1750116370633,35.29082424,152.92,152.88,6.57082424]
[1750116370839,6.57082424,152.93,152.88,6.57082424]
[1750116371038,28.72,152.92,152.89,6.57082424]
[1750116371334,6.57082424,152.93,152.89,6.57082424]
[1750116371335,28.72,152.91,152.89,6.57082424]
[1750116371512,28.72,152.91,152.88,6.57082424]
[1750116373012,28.72,152.91,152.89,6.54065014]
[1750116373217,35.29082424,152.91,152.89,6.54065014]
[1750116373514,28.72,152.91,152.89,6.54065014]
[1750116373721,6.57082424,152.9,152.84,22.89920689]
[1750116374028,1.83782314,152.9,152.84,22.89920689]
[1750116374227,6.57082424,152.88,152.84,22.89920689]
[1750116374540,35.29082424,152.87,152.84,22.89920689]
[1750116376028,28.72,152.87,152.84,22.89920689]
[1750116376234,28.72,152.87,152.85,6.57082424]
[1750116376739,28.72,152.87,152.84,29.47003113]
[1750116377440,28.72,152.87,152.84,22.89920689]
[1750116377649,28.72,152.87,152.84,29.47003113]
[1750116377868,28.72,152.89,152.86,6.57082424]
[1750116378141,28.72,152.9,152.89,6.54065014]
[1750116378332,18.64964886,152.96,152.89,13.11147438]
[1750116378523,8.12432424,152.97,152.92,6.57082424]
[1750116378722,28.7,152.96,152.92,6.57082424]
[1750116378940,6.57082424,152.97,152.92,6.57082424]
[1750116379145,28.7,152.95,152.92,6.57082424]
[1750116379343,6.57082424,152.97,152.92,6.57082424]
[1750116379535,6.57082424,152.94,152.9,6.96]
[1750116380354,6.57082424,152.93,152.91,6.53979465]
[1750116380742,6.57082424,152.94,152.91,6.53979465]
[1750116380931,9.88090129,152.94,152.91,6.53979465]
[1750116381655,9.88090129,152.94,152.9,6.96]
[1750116381656,18.933972,152.94,152.9,13.50013671]
[1750116381947,9.88090129,152.93,152.9,13.50013671]
[1750116382153,28.7,152.92,152.9,13.50013671]
[1750116382644,38.58090129,152.92,152.9,13.50013671]
[1750116383669,28.7,152.92,152.9,39.73159391]
[1750116383842,28.7,152.93,152.9,39.73159391]
[1750116384044,28.7,152.93,152.91,9.88090129]
[1750116384229,28.7,152.94,152.92,22.88778445]
[1750116384437,6.58446157,152.99,152.92,22.88778445]
[1750116384438,9.88090129,152.95,152.92,22.88778445]
[1750116384748,28.7,152.94,152.92,22.88778445]
[1750116385251,38.58090129,152.94,152.92,6.53936698]
[1750116385846,28.7,152.94,152.92,6.53936698]
[1750116386151,28.7,152.94,152.92,16.42026827]
[1750116386344,28.7,152.93,152.92,32.76868574]
[1750116386544,9.88090129,152.98,152.92,32.76868574]
[1750116386757,28.7,152.95,152.93,9.88090129]
[1750116386929,9.88090129,152.98,152.93,9.88090129]
[1750116387129,28.7,152.97,152.93,9.88090129]
[1750116387330,38.58090129,152.97,152.92,32.76868574]
[1750116387533,9.88090129,152.97,152.92,32.76868574]
[1750116387738,28.7,152.96,152.92,32.76868574]
[1750116388654,28.7,152.96,152.93,9.88090129]
[1750116388861,44.64964886,153.0,152.94,9.88090129]
[1750116389166,9.88090129,153.0,152.96,9.88090129]
[1750116389453,38.56090129,152.99,152.95,9.88090129]
[1750116389770,28.68,152.98,152.94,9.88090129]
[1750116389940,28.68,152.98,152.95,9.88090129]
[1750116390140,9.88090129,152.99,152.92,17.97941747]
[1750116390141,10.16522443,153.01,152.96,9.88090129]
[1750116390359,28.68,153.0,152.96,9.88090129]
[1750116390667,28.68,152.99,152.97,6.53722952]
[1750116391147,28.68,152.98,152.97,22.88030332]
[1750116391327,9.88090129,153.01,152.97,29.80030332]
[1750116391531,28.68,153.0,152.97,29.80030332]
[1750116391740,28.68,152.99,152.97,29.80030332]
[1750116392646,28.68,152.99,152.97,39.68120461]
[1750116392863,28.68,152.98,152.97,39.68120461]
[1750116394235,28.68,152.98,152.97,29.80030332]
[1750116395076,28.68,152.98,152.97,39.68120461]
[1750116396263,28.68,152.98,152.97,29.80030332]
[1750116396462,28.68,152.98,152.97,13.45722952]
[1750116396965,9.88090129,153.0,152.97,13.45722952]
[1750116397153,28.66,152.99,152.97,13.45722952]
[1750116399763,38.54090129,152.99,152.97,13.45722952]
[1750116400268,9.88090129,152.98,152.97,13.45722952]
[1750116400440,38.54090129,152.99,152.97,13.45722952]
[1750116400642,28.66,152.99,152.97,13.45722952]
[1750116401060,6.4275,153.03,152.98,9.88090129]
[1750116401339,38.68306286,153.02,152.98,9.88090129]
[1750116401553,28.66,153.01,152.98,9.88090129]
[1750116401854,9.88090129,153.01,152.97,39.68120461]
[1750116402166,9.88090129,153.0,152.97,29.80030332]
[1750116402358,18.933972,153.02,152.98,9.88090129]
[1750116402557,28.81487329,153.02,152.98,9.88090129]
[1750116402867,28.66,153.01,152.98,6.58002765]
[1750116403279,28.66,153.01,152.97,36.38033097]
[1750116403771,28.66,153.01,152.99,6.58002765]
[1750116404158,28.66,153.01,152.98,6.58002765]
[1750116404344,6.58002765,153.02,152.97,36.38033097]
[1750116404550,28.64,153.01,152.97,36.38033097]
[1750116404860,35.22002765,153.01,152.97,29.80030332]
[1750116405577,35.22002765,153.01,152.97,36.38033097]
[1750116405962,28.64,153.01,152.97,36.38033097]
[1750116406210,28.64,153.01,152.98,6.58002765]
[1750116406348,28.64,153.01,152.97,36.38033097]
[1750116407447,28.64,153.01,152.98,6.58002765]
[1750116407879,28.64,153.0,152.98,6.58002765]
[1750116408063,28.64,153.0,152.99,6.53637492]
[1750116409677,28.64,153.0,152.99,13.11640257]
[1750116409881,12.99402765,153.07,152.99,62.13921451]
[1750116410053,6.414,153.07,153.03,6.5346664]
[1750116410371,6.414,153.07,153.01,6.53552055]
[1750116410372,6.58002765,153.04,153.01,6.53552055]
[1750116410570,35.22002765,153.03,153.01,6.53552055]
[1750116410752,28.64,153.03,153.01,6.53552055]
[1750116411769,6.414,153.07,153.01,22.87432193]
[1750116411968,6.58002765,153.05,153.01,22.87432193]
[1750116412182,6.58002765,153.04,153.01,6.53552055]
[1750116412485,28.62,153.03,153.01,6.53552055]
[1750116413783,28.62,153.03,153.01,13.1155482]
[1750116413969,28.62,153.03,153.02,6.58002765]
[1750116414168,28.62,153.03,153.02,13.1151211]
[1750116414479,28.62,153.04,153.02,29.45285472]
[1750116414777,174.61399965,153.08,153.03,6.58002765]
[1750116414778,0.28432314,153.07,153.03,6.58002765]
[1750116414968,28.62,153.06,153.03,6.58002765]
[1750116415161,52.81387651,153.09,153.04,6.58002765]
[1750116415364,149.1,153.15,153.05,6.92]
[1750116415365,1.5045,153.13,153.05,6.92]
[1750116415576,28.62,153.12,153.08,6.58002765]
[1750116415782,28.62,153.12,153.05,13.50002765]
[1750116415783,6.58002765,153.1,153.05,13.50002765]
[1750116415979,6.58002765,153.07,153.02,48.87282707]
[1750116416170,28.62,153.06,153.04,6.53423941]
[1750116416367,0.28432314,153.1,153.04,29.44986559]
[1750116416581,35.20002765,153.09,153.04,29.44986559]
[1750116417082,28.62,153.09,153.05,6.58002765]
[1750116417271,28.62,153.09,153.06,6.58002765]
[1750116417463,28.62,153.09,153.05,6.58002765]
[1750116417668,28.62,153.09,153.07,6.58002765]
[1750116417862,8.08452765,153.13,153.08,6.58002765]
[1750116418081,1.5045,153.13,153.09,6.58002765]
[1750116418265,28.62,153.12,153.11,6.53125204]
[1750116418586,149.1,153.15,153.11,6.53125204]
[1750116418764,28.6,153.14,153.11,29.43940979]
[1750116419575,28.6,153.13,153.11,29.43940979]
[1750116419969,8.08452765,153.17,153.12,6.58002765]
[1750116420173,17.98761134,153.18,153.14,6.52997257]
[1750116420377,35.18002765,153.17,153.14,6.52997257]
[1750116420691,11.36637235,153.16,153.14,6.52997257]
[1750116420875,35.18002765,153.16,153.14,6.52997257]
[1750116421066,6.625,153.18,153.14,6.52997257]
[1750116421272,9.5752092,153.18,153.15,6.58002765]
[1750116421460,11.55055489,153.19,153.16,6.58002765]
[1750116421663,28.6,153.17,153.16,6.58002765]
[1750116421880,11.55055489,153.19,153.16,6.58002765]
[1750116422062,28.6,153.18,153.17,13.46002765]
[1750116422264,28.6,153.18,153.17,19.98872125]
[1750116423200,1.652,153.3,153.18,7.6635]
[1750116423373,28.58,153.29,153.24,6.58002765]
[1750116423575,149.1,153.31,153.26,6.58002765]
[1750116423785,28.58,153.3,153.24,6.88]
[1750116423962,26.0,153.32,153.27,6.58002765]
[1750116424168,12.68992765,153.33,153.28,6.58002765]
[1750116424384,6.58002765,153.34,153.29,13.1036104]
[1750116424673,28.86432314,153.33,153.29,29.41256727]
[1750116424875,28.86432314,153.33,153.29,32.66173334]
[1750116425085,28.58,153.33,153.29,32.66173334]
[1750116425595,10.11351686,153.32,153.29,6.52358275]
[1750116425768,9.97135529,153.32,153.29,6.52358275]
[1750116425974,28.58,153.31,153.29,6.52358275]
[1750116426898,28.58,153.31,153.29,16.35277647]
[1750116427270,28.58,153.3,153.29,16.35277647]
[1750116427505,10.11351686,153.34,153.29,16.35277647]
[1750116427705,44.933972,153.35,153.32,9.82919372]
[1750116427706,26.0,153.35,153.32,9.82919372]
[1750116427994,28.56,153.34,153.32,9.82919372]
[1750116428208,17.67385088,153.37,153.33,9.82919372]
[1750116428381,17.67385088,153.37,153.31,6.88]
[1750116428382,28.56,153.36,153.34,16.35025752]
[1750116428586,28.56,153.36,153.34,6.5210638]
[1750116429092,9.82919372,153.35,153.31,6.88]
[1750116429281,38.38919372,153.36,153.32,6.52224206]
[1750116429480,28.56,153.36,153.32,6.52224206]
[1750116429894,26.0,153.39,153.34,9.82919372]
[1750116430093,28.56,153.38,153.34,9.82919372]
[1750116430282,38.38919372,153.38,153.34,9.82919372]
[1750116430615,10.11351686,153.37,153.33,6.52188091]
[1750116430976,10.11351686,153.37,153.33,16.35107463]
[1750116432024,32.097,153.4,153.33,6.52188091]
[1750116432025,26.0,153.4,153.33,6.52188091]
[1750116432179,6.3523,153.47,153.33,22.82658318]
[1750116432377,9.82919372,153.4,153.33,16.30470227]
[1750116432604,28.54,153.4,153.36,9.82919372]
[1750116433025,28.54,153.4,153.37,9.82919372]
[1750116433321,28.54,153.39,153.38,6.86]
[1750116433618,28.54,153.4,153.38,6.86]
[1750116433818,28.52,153.41,153.38,6.86]
[1750116434119,28.52,153.41,153.38,16.68919372]
[1750116434425,28.52,153.41,153.39,6.51932981]
[1750116434644,10.11351686,153.42,153.39,6.51932981]
[1750116434807,28.52,153.41,153.39,6.51932981]
[1750116435609,28.52,153.41,153.38,13.37971541]
[1750116435811,28.52,153.41,153.38,23.20890913]
[1750116436016,0.28432314,153.43,153.4,9.82919372]
[1750116436330,28.52,153.44,153.38,29.67910255]
[1750116436510,28.52,153.44,153.41,9.82919372]
[1750116436911,18.64964886,153.46,153.41,9.82919372]
[1750116436912,9.82919372,153.45,153.41,9.82919372]
[1750116437115,28.52,153.44,153.4,9.82919372]
[1750116437917,38.34919372,153.44,153.39,9.82919372]
[1750116438105,28.52,153.43,153.39,9.82919372]
[1750116438310,28.52,153.43,153.38,29.67910255]
[1750116438509,28.52,153.43,153.4,6.51890482]
[1750116440402,28.52,153.43,153.42,6.51805501]
[1750116440608,32.49446157,153.47,153.42,23.20724873]
[1750116440609,26.14216157,153.47,153.42,23.20724873]
[1750116440829,44.64964886,153.49,153.45,9.82919372]
[1750116441013,28.5,153.48,153.42,29.67319254]
[1750116441214,9.82919372,153.46,153.42,13.37805501]
[1750116441416,9.82919372,153.45,153.42,13.37805501]
[1750116441710,38.32919372,153.45,153.42,13.37805501]
[1750116442129,28.5,153.45,153.42,13.37805501]
[1750116442635,28.5,153.44,153.42,23.20724873]
[1750116443024,28.5,153.44,153.43,9.82919372]
[1750116443216,0.28432314,153.48,153.43,9.82919372]
[1750116443417,28.5,153.47,153.44,9.82919372]
[1750116443614,6.4606,153.51,153.42,29.67319254]
[1750116443814,28.5,153.5,153.43,1.5388]
[1750116444028,1.5779,153.52,153.43,1.5388]
[1750116444219,28.5,153.51,153.43,1.5388]
[1750116444435,9.82919372,153.49,153.43,1.5388]
[1750116444635,28.5,153.51,153.42,29.67319254]
[1750116444636,18.64964886,153.5,153.44,13.37720542]
[1750116444817,9.82919372,153.46,153.44,13.37720542]
[1750116445018,28.74,153.46,153.44,13.37720542]
[1750116445215,28.90532729,153.45,153.44,6.86]
[1750116446051,30.53652729,153.45,153.44,6.86]
[1750116446216,28.76316572,153.45,153.44,6.86]
[1750116446422,28.90532729,153.45,153.44,6.86]
[1750116446721,35.422108,153.45,153.44,6.86]
[1750116446924,71.25130172,153.45,153.44,6.86]
[1750116447927,71.25130172,153.45,153.37,6.52014147]
[1750116448133,9.82919372,153.38,153.34,6.52145558]
[1750116448342,28.68,153.37,153.35,6.86]
[1750116448524,28.68,153.37,153.36,6.52060511]
[1750116450322,28.68,153.37,153.36,16.34979883]
[1750116450644,6.51668234,153.46,153.36,32.65131161]
[1750116450645,28.66,153.41,153.36,32.65131161]
[1750116450942,28.66,153.42,153.39,9.82919372]
[1750116451145,28.66,153.42,153.4,9.82919372]
[1750116451945,28.66,153.43,153.41,9.82919372]
[1750116452250,28.66,153.44,153.42,16.76919372]
[1750116452739,28.66,153.44,153.43,6.51763018]
[1750116452937,38.48919372,153.44,153.42,13.45794496]
[1750116453942,28.66,153.44,153.42,13.45794496]
[1750116454827,38.48919372,153.44,153.42,13.45794496]
[1750116455014,18.933972,153.45,153.42,13.45794496]
[1750116455221,28.64,153.44,153.42,13.45794496]
[1750116457627,38.46919372,153.44,153.42,13.45794496]
[1750116458229,28.64,153.44,153.42,13.45794496]
[1750116458633,38.46919372,153.44,153.42,13.45794496]
[1750116458848,28.64,153.44,153.42,13.45794496]
[1750116459657,38.46919372,153.44,153.42,13.45794496]
[1750116459950,28.64,153.44,153.42,13.45794496]
[1750116460949,9.82919372,153.46,153.42,23.28713868]
[1750116461147,28.52,153.45,153.42,23.28713868]
[1750116461348,28.52,153.45,153.42,39.58227621]
[1750116461548,28.52,153.45,153.42,29.75308249]
[1750116461737,38.34919372,153.45,153.42,13.45794496]
[1750116462776,28.52,153.44,153.42,13.45794496]
[1750116464668,28.47884258,153.43,153.42,6.94]
[1750116464839,19.07613357,153.42,153.35,13.46103032]
[1750116465159,9.82919372,153.37,153.35,13.46103032]
[1750116465369,28.5,153.36,153.35,13.46103032]
[1750116467268,28.5,153.37,153.35,39.59279984]
[1750116467475,28.5,153.38,153.35,39.59279984]
[1750116469161,9.82919372,153.37,153.35,29.76360612]
[1750116469460,9.82919372,153.37,153.35,13.46103032]
[1750116470166,28.5,153.38,153.35,13.46103032]
[1750116470362,9.82919372,153.37,153.35,13.46103032]
[1750116470860,9.82919372,153.36,153.35,13.46103032]
[1750116471453,9.82919372,153.37,153.35,13.46103032]
[1750116471674,28.5,153.38,153.35,13.46103032]
[1750116471847,9.82919372,153.37,153.35,13.46103032]
[1750116472055,9.82919372,153.36,153.35,13.46103032]
[1750116472468,28.47884258,153.36,153.35,6.94]
[1750116472770,28.76316572,153.36,153.35,6.94]
[1750116473070,18.933972,153.36,153.35,6.94]
[1750116473250,28.76316572,153.36,153.35,6.94]
[1750116474266,38.32919372,153.39,153.35,29.76360612]
[1750116476064,28.5,153.39,153.35,39.59279984]
[1750116476458,38.32919372,153.39,153.35,29.76360612]
[1750116476781,28.5,153.39,153.35,39.59279984]
[1750116477077,38.32919372,153.39,153.35,29.76360612]
[1750116477456,28.5,153.39,153.35,29.76360612]
[1750116477663,38.32919372,153.39,153.35,29.76360612]
[1750116478454,28.5,153.39,153.35,29.76360612]
[1750116478650,28.5,153.39,153.35,39.59279984]
[1750116478983,38.32919372,153.39,153.35,29.76360612]
[1750116479756,28.5,153.39,153.35,39.59279984]
[1750116481259,38.32919372,153.39,153.35,29.76360612]
[1750116481459,0.28432314,153.35,153.32,6.94]
[1750116481666,9.82919372,153.33,153.32,6.94]
[1750116481956,28.5,153.34,153.32,6.94]
[1750116482181,28.76316572,153.33,153.32,6.94]
[1750116482854,25.48881312,153.33,153.32,6.94]
[1750116484074,28.5,153.34,153.32,13.46230628]
[1750116484381,35.05484112,153.34,153.32,13.46230628]
[1750116485096,38.33031099,153.34,153.32,13.46230628]
[1750116485976,9.83031099,153.33,153.32,13.46230628]
[1750116486288,28.76428299,153.33,153.32,6.94]
[1750116487384,28.76428299,153.33,153.32,13.46230628]
[1750116490685,28.76428299,153.33,153.32,6.94]
[1750116490888,28.76428299,153.33,153.32,13.46230628]
[1750116492089,9.83031099,153.33,153.32,13.46230628]
[1750116493306,28.5,153.34,153.32,13.46230628]
[1750116493602,9.83031099,153.33,153.32,13.46230628]
[1750116494712,28.76428299,153.33,153.32,6.94]
[1750116494881,28.76428299,153.33,153.32,13.46230628]
[1750116495478,28.76428299,153.33,153.32,6.94]
[1750116496172,28.76428299,153.33,153.32,13.46230628]
[1750116496402,28.76428299,153.33,153.32,6.94]
[1750116498304,18.933972,153.33,153.32,6.94]
[1750116498511,28.76428299,153.33,153.32,6.94]
[1750116500697,28.76428299,153.33,153.32,13.46230628]
[1750116500881,54.90644456,153.33,153.32,6.94]
[1750116501083,54.90644456,153.33,153.27,6.52442862]
[1750116501084,19.07613357,153.29,153.27,6.52442862]
[1750116501324,28.48,153.28,153.27,6.52442862]
[1750116501517,11.52312958,153.3,153.27,32.66582462]
[1750116501720,40.00312958,153.3,153.29,9.83031099]
[1750116502004,40.00312958,153.3,153.28,16.67031099]
[1750116502210,40.00312958,153.3,153.29,9.83031099]
[1750116502583,40.00312958,153.3,153.29,16.35389374]
[1750116502584,11.52312958,153.3,153.29,16.35389374]
[1750116502917,1.68486157,153.36,153.29,32.66285061]
[1750116502918,26.0,153.36,153.29,32.66285061]
[1750116503085,26.0,153.36,153.33,9.83031099]
[1750116503287,6.3955,153.44,153.31,26.0]
[1750116503507,9.83031099,153.43,153.38,9.83031099]
[1750116503687,9.83031099,153.42,153.38,6.84]
[1750116504012,28.76428299,153.39,153.38,6.84]
[1750116504313,56.95995985,153.39,153.38,6.84]
[1750116504509,18.64964886,153.38,153.32,6.52230628]
[1750116504709,9.83031099,153.36,153.33,6.84]
[1750116505022,18.933972,153.33,153.29,6.84]
[1750116505191,38.31031099,153.32,153.29,6.84]
[1750116505713,9.83031099,153.31,153.29,6.84]
[1750116505883,28.48,153.3,153.29,6.84]
[1750116506083,28.48,153.3,153.29,13.36358275]
[1750116506825,57.24428299,153.3,153.29,6.84]
[1750116507109,57.24428299,153.3,153.29,13.36358275]
[1750116507413,57.24428299,153.3,153.29,6.84]
[1750116508202,57.24428299,153.3,153.29,13.36358275]
[1750116508410,47.413972,153.3,153.29,13.36358275]
[1750116508910,18.933972,153.29,153.21,1.6274]
[1750116509087,46.46017256,153.3,153.21,1.6274]
[1750116509088,9.83031099,153.26,153.23,6.84]
[1750116509301,38.31031099,153.25,153.23,6.84]
[1750116510590,38.31031099,153.25,153.24,6.5257113]
[1750116511501,18.933972,153.24,153.23,6.84]
[1750116511708,26.0,153.17,153.02,16.23483198]
[1750116512016,36.0,153.21,153.06,16.36369659]
[1750116512017,18.64964886,153.11,153.06,16.36369659]
[1750116512217,29.52,153.1,153.06,6.5333856]
[1750116512502,0.28432314,153.09,153.06,16.36369659]
[1750116512708,29.52,153.11,153.08,9.83031099]
[1750116513005,29.52,153.13,153.06,22.8668496]
[1750116513192,29.5,153.13,153.11,9.83031099]
[1750116513388,29.5,153.13,153.06,22.8668496]
[1750116513389,29.5,153.13,153.12,9.83031099]
[1750116513588,29.5,153.15,153.12,9.83031099]
[1750116513895,29.5,153.15,153.13,7.4]
[1750116514096,29.52,153.17,153.14,9.83031099]
[1750116514428,29.52,153.17,153.16,9.83031099]
[1750116514593,29.52,153.17,153.15,9.83031099]
[1750116515731,29.76,153.19,153.16,9.83031099]
[1750116516517,29.76,153.19,153.17,6.5286936]
[1750116516728,10.11463413,153.2,153.17,6.5286936]
[1750116516911,10.11463413,153.2,153.13,7.4]
[1750116516912,18.933972,153.18,153.13,7.4]
[1750116517103,9.83031099,153.17,153.13,17.23031099]
[1750116517296,29.72,153.16,153.14,6.52997257]
[1750116520332,29.72,153.16,153.13,7.4]